{"text_format":"3","workbook":"xlsx","n_sheets":10,"sheets":["Ebola Implementation Guidance","Ebola Part A - Admin Info","Ebola Part A - ETC(s)","Ebola Part A - AH(s)","Ebola Part A - Awardee HCC PMs","Ebola Part A - ETC Ebola PM","Ebola Part A - ETC OSP PM","Ebola Part A - AH Ebola PM","Ebola Part A - AH OSP PM","Ebola Part A - Impact"],"not_rendered":{"macros":1,"defined_names":8},"read":"whole","date_system":"1900"}

{"sheet":"Ebola Implementation Guidance","index":0,"n_rows":246,"n_cols":2,"rows_kept":246,"merged":[[3,0,4,0],[7,0,8,0],[10,0,12,0],[20,0,21,0],[23,0,27,0],[36,0,37,0],[38,0,39,0],[40,0,42,0],[51,0,52,0],[53,0,54,0],[64,0,65,0],[67,0,69,0],[78,0,79,0],[81,0,82,0],[91,0,92,0],[94,0,96,0],[106,0,107,0],[109,0,110,0],[119,0,120,0],[133,0,134,0],[135,0,136,0],[137,0,140,0],[152,0,155,0],[164,0,165,0],[176,0,177,0],[188,0,189,0],[191,0,194,0],[204,0,205,0],[216,0,217,0],[228,0,229,0],[231,0,232,0],[238,0,239,0],[242,0,243,0]]}
["Number",1]
["Part","A"]
["Activity","Activity A: Develop a Concept of Operations."]
["Measure","Time, in minutes, it takes from an assessment hospital’s notification to the health department of the need for an inter-facility transfer of a patient confirmed with Ebola or other special pathogen to the arrival of a staffed and equipped EMS/inter-facility transport unit, as evidenced by a no-notice exercise or real-world event."]
[null,"*Note: This measure does not apply for awardees/facilities addressing other special pathogens"]
["Reporting Element","Assessment Hospital"]
["Data Source","Coalition or Assessment Hospital Exercise or Real-World Event"]
["Metrics","Start Time: Time the health department was notified by the assessment hospital, or time from the health department’s decision, of the need for an inter-facility transfer. "]
[null,"Stop Time: Time of arrival of a staffed and equipped EMS/inter-facility transport unit."]
["Goal","Within 240 minutes or 4 hours"]
["Definitions","Assessment Hospital: Pre-designated facilities that are prepared to receive and isolate a patient under investigation (PUI) for Ebola and care for the patient until an Ebola diagnosis can be confirmed or ruled out and until discharge or transfer is completed. "]
[null,"EMS/Inter-facility transport unit: Entities identified in the awardee’s CONOPS responsible for the transport and patient care during transport of an actively monitored or directly actively monitored (AM/DAM) patient to an Ebola assessment facility or to provide inter-facility transport (i.e., from a frontline facility to an Ebola assessment/treatment facility or from an Ebola assessment facility to an Ebola treatment facility)."]
[null,"No-notice exercise: Unannounced exercise, including drills, functional, and full-scale exercises."]
[]
["Number",2]
["Part ","A"]
["Activity","Activity B: Assure Readiness of Ebola Treatment Centers. "]
["Measure","Proportion of rostered/covered staff that are trained in safely donning and doffing personal protective equipment (PPE)."]
["Reporting Element","Ebola Treatment Center"]
["Data Source","Ebola Treatment Center"]
["Metrics","Numerator: Total number of rostered/covered staff that completed training. "]
[null,"Denominator: Total number of rostered/covered staff."]
["Goal","100% of rostered/covered staff"]
["Definitions","Rostered/covered Staff: Individuals that have been pre-identified to provide ongoing care and treatment to patients with confirmed Ebola or patient under investigation (PUI)."]
[null,"Donning: The administration or act of putting on PPE."]
[null,"Doffing: The removal of used PPE; this is a high-risk process that requires a structured procedure, a trained observer, and a designated area for removal to ensure protection. "]
[null,"Trained: Individuals who have completed Ebola/infection control and safety training to specifically include proper donning (putting on PPE) and doffing (taking off PPE) methods. (http://www.cdc.gov/vhf/ebola/hcp/ppe-training/)"]
[null,"PPE: Devices or equipment designated to provide protection while providing care for a confirmed or suspected patient with Ebola."]
[]
[]
["Number",3]
["Part ","A"]
["Activity","Activity B: Assure Readiness of Ebola Treatment Centers. "]
["Measure","Time it takes for all rostered/covered staff to receive just-in-time (JIT) training, upon notification of a patient with Ebola or other special pathogen at the regional Ebola and other special pathogen treatment center. "]
["Reporting Element","Ebola Treatment Center "]
["Data Source","Ebola Treatment Center Exercise or Real-World Event"]
["Metrics","Start Time: Time of notification (in hours and minutes) of a patient confirmed with Ebola or other special pathogen at the regional Ebola and other special pathogen treatment center."]
[null,"Stop Time: Time all rostered/covered staff completed JIT training (in hours and minutes)."]
["Goal ","Within 72 hours"]
[null,"*Note: Recommendation from facilities that have successfully treated Ebola is for JIT training to be completed within 24 hours."]
["Definitions","Notification: The ETC receives notification from the health department that the regional Ebola and other special pathogen treatment facility in their region received a confirmed patient.  "]
[null,"Rostered/covered Staff: Individuals that have been pre-identified to provide ongoing care and treatment to patients with confirmed Ebola or patient under investigation (PUI)."]
[null,"Just-In-Time (JIT) training: Training that is conducted as a refresher to prepare for a patient with Ebola or other special pathogen, including donning and doffing, facility-specific protocols and procedures, and care/treatment protocols. "]
[]
[]
["Number",4]
["Part ","A"]
["Activity","Activity B: Assure Readiness of Ebola Treatment Centers. "]
["Measure","Time until an Ebola treatment center is ready to admit a patient with Ebola or other special pathogen as evidenced by an exercise or actual patient transfer. "]
["Reporting Element","Ebola Treatment Center"]
["Data Source","Ebola Treatment Center Exercise or Real-World Event"]
["Metrics","Start Time: Time the ETC was notified (in hours and minutes) that a patient confirmed with Ebola or other special pathogen was admitted to the regional Ebola and other special pathogen treatment center in their region. "]
[null,"Stop Time: Time ETC is ready to admit a patient with Ebola or other special pathogen (in hours and minutes)."]
["Goal","Within 72 hours (upon  notification of a patient confirmed with Ebola or other special pathogen  at a regional Ebola and other special pathogen treatment centers)"]
[null,"*Note: Recommendation from facilities that have successfully treated Ebola is for ETCs to be ready to admit a patient within 24 hours."]
["Definitions","Notification: The ETC receives notification from the health department that the regional Ebola and other special pathogen treatment center in their region received a confirmed patient."]
[]
[]
["Number",5]
["Part ","A"]
["Activity","Activity B: Assure Readiness of Ebola Treatment Centers. "]
["Measure","Proportion of rostered/covered staff contacted by hospital within 4 hours of a patient confirmed with Ebola or other special pathogen admission to a regional Ebola and other special pathogen treatment center."]
["Reporting Element","Ebola Treatment Center"]
["Data Source","Ebola Treatment Center Exercise or Real-World Event"]
["Metrics ","Numerator: Number of rostered/covered staff contacted within 4 hours of notification of a patient with confirmed Ebola at the regional Ebola and other special pathogens treatment center."]
[null,"Denominator: Total number of rostered/covered staff. "]
["Goal","100% of rostered/covered staff"]
["Definitions","Rostered/covered Staff: Individuals that have been pre-identified to provide ongoing care and treatment to patients with confirmed Ebola or patient under investigation (PUI)."]
[null,"Confirmation: Laboratory-confirmed diagnostic evidence of Ebola virus or other special pathogen."]
[null,"Contact: The hospital successfully contacted the staff members (and received a response) by phone, email, or automated alert system. "]
[]
[]
["Number",6]
["Part ","A"]
["Activity","Activity B: Assure Readiness of Ebola Treatment Centers."]
["Measure","Proportion of rostered/covered staff contacted that indicated they are able to report to fulfill Ebola or other special pathogen-related staffing needs within 72 hours. "]
["Reporting Element","Ebola Treatment Center"]
["Data Source","Ebola Treatment Center Exercise or Real-World Event"]
["Metrics","Numerator: Number of rostered/covered staff able to report within 72 hours to fulfill Ebola or other special pathogen-related staffing needs."]
[null,"Denominator: Total number of rostered/covered staff contacted."]
["Goal","100% of contacted rostered/covered staff"]
["Definitions","Rostered/covered staff: Individuals that have been pre-identified to provide ongoing care and treatment to patients with confirmed Ebola or patient under investigation (PUI)."]
[null,"Contact: The hospital successfully contacted the staff members (and received a response) by phone, email, or automated alert system."]
[]
[]
["Number",7]
["Part ","A"]
["Activity","Activity B: Assure Readiness of Ebola Treatment Centers. "]
["Measure","Proportion of Ebola Treatment Centers (ETCs) that can access their PPE supply (i.e., know location and have sufficient quantity of unexpired supply) within 10 minutes of transfer notification or upon the patient’s arrival (if no notification) of a patient suspected of Ebola or other special pathogen."]
["Reporting Element","Ebola Treatment Center"]
["Data Source","Ebola Treatment Center Exercise or Real-World Event"]
["Metrics","Numerator: Number of ETCs that can access their PPE supply within 10 minutes of transfer notification or upon the patient’s arrival (if no notification) of patient suspected with Ebola or other special pathogen."]
[null,"Denominator: All ETCs in an awardee’s jurisdiction."]
["Goal ","100% of Ebola Treatment Centers"]
["Definitions","Transfer Notification: The ETC receives notification from the health department, assessment hospital, or EMS of an incoming patient suspected of Ebola or other special pathogen. "]
[null,"PPE Access:  The ability to identify the location and have sufficient quantity of unexpired supply of PPE at the patient care location(s) (e.g., emergency department, intensive care unit, Ebola treatment unit)."]
[null,"Sufficient: The extent to which the availability of PPE supplies meets the pre-identified needs (i.e., CDC guidelines, needs assessment, CONOPS)."]
[]
[]
["Number",8]
["Part ","A"]
["Activity","Activity B: Assure Readiness of Assessment Hospitals."]
["Measure (Ebola)","Time, in seconds, from active monitoring/direct active monitoring (AM/DAM) patient’s arrival to placement in isolation at assessment hospital. "]
["Measure (OSP)","This measure does not apply for assessment hospitals addressing other special pathogens"]
["Reporting Element","Assessment Hospital"]
["Data Source","Assessment Hospital Exercise or Coalition Exercise, or Real-World Event"]
["Metrics","Start Time: Time in minutes and seconds of AM/DAM patient’s arrival at assessment hospital. "]
[null,"Stop Time: Time in minutes and seconds of AM/DAM patient’s placement in isolation at assessment hospital."]
["Goal ","Less than or equal to 60 seconds"]
["Definitions","AM/DAM: Active monitoring means that the state or local public health authority assumes responsibility for establishing regular communication with potentially exposed individuals, including checking daily to assess for the presence of symptoms and fever, rather than relying solely on individuals to self-monitor and report symptoms if they develop. Direct active monitoring means the public health authority conducts active monitoring through direct observation.  "]
[null,"Isolation: Precautions that are taken in a health care facility to prevent the spread of an infectious agent from an infected or colonized patient to susceptible persons. Isolation practices can include placement in a private room or with a select roommate, the use of protective barriers such as masks, gowns and gloves, a special emphasis on handwashing (which is always very important), and special handling of contaminated articles. "]
[]
[]
["Number",9]
["Part ","A"]
["Activity","Activity B: Assure Readiness of Assessment Hospitals."]
["Measure","Time, in minutes, it takes an assessment hospital to identify and isolate a patient suspected with Ebola or other special pathogen following emergency department triage, as evidenced by a real-world case or no-notice exercise."]
["Reporting Element","Assessment Hospital"]
["Data Source","Assessment Hospital Exercise or Coalition Exercise, or Real-World Event "]
["Metrics","Start Time: Time of the initiation of an emergency room triage in minutes and seconds. "]
[null,"Stop Time: Time the patient is placed in isolation in minutes and seconds."]
["Goal","Less than or equal to 5 minutes "]
["Definitions","No-notice exercise: Unannounced exercise, including drills, functional, and full-scale exercises."]
[]
[]
[]
["Number",10]
["Part ","A"]
["Activity","Activity B: Assure Readiness of Assessment Hospitals."]
["Measure (Ebola)","Proportion of health care facility and emergency medical services (EMS) workers in PPE, of those make contact with an AM/DAM suspected Ebola patient under investigation (PUI) after health department notification to the assessment hospital and/or EMS Agency."]
["Measure (OSP)","Proportion of health care facility and emergency medical services (EMS) workers in PPE that a patient suspected of an other special pathogen makes contact with after health department notification to the assessment hospital or EMS agency."]
["Reporting Element","Assessment Hospital"]
["Data Source","Assessment Hospital Exercise or Coalition Exercise, or Real-World Event"]
["Metrics","Numerator: The number of health care facility and EMS workers in PPE while in contact with an AM/DAM Ebola patient (or patient suspected of an other special pathogen) after notification to an EMS agency or assessment hospital."]
[null,"Denominator: The total number of health care facility and EMS workers in contact with an AM/DAM Ebola patient, after notification to an EMS agency or assessment hospital."]
["Goal","100% of health care facility and EMS workers"]
[null,"*Note that the goal is for no health care or EMS worker to be without PPE while in contact with an AM/DAM suspected Ebola patient after notification."]
["Definitions","AM/DAM: Active monitoring means that the state or local public health authority assumes responsibility for establishing regular communication with potentially exposed individuals, including checking daily to assess for the presence of symptoms and fever, rather than relying solely on individuals to self-monitor and report symptoms if they develop.  Direct active monitoring means the public health authority conducts active monitoring through direct observation.  "]
[null,"Notification: Communication of a PUI or suspected patient to an assessment hospital."]
[null,"Start time: The assessment hospital or EMS agency receives notification from the health department of an incoming patient suspected of Ebola or other special pathogen, or patient’s arrival (if no notification)."]
[null,"Stop time: When discharge or transfer is completed."]
[]
[]
["Number",11]
["Part ","A"]
["Activity","Activity B: Assure Readiness of Assessment Hospitals."]
["Measure (Ebola)","Number of health care facility and EMS workers in PPE that an AM/DAM suspected Ebola patient makes contact with after health department notification until isolation."]
["Measure (OSP)","This measure does not apply for assessment hospitals addressing other special pathogens"]
["Reporting Element","Assessment Hospital"]
["Data Source","Assessment Hospital Exercise or Coalition Exercise, or Real-World Event"]
["Metrics","Number of health care facility and EMS workers in PPE that make contact with an AM/DAM suspected patient between the time of notification and isolation."]
["Goal","Less than or equal to 3"]
["Definitions","AM/DAM patients: Active monitoring means that the state or local public health authority assumes responsibility for establishing regular communication with potentially exposed individuals, including checking daily to assess for the presence of symptoms and fever, rather than relying solely on individuals to self-monitor and report symptoms if they develop.  Direct active monitoring means the public health authority conducts active monitoring through direct observation. "]
[null,"Isolation: Precautions that are taken in a health care facility to prevent the spread of an infectious agent from an infected or colonized patient to susceptible persons. Isolation practices can include placement in a private room or with a select roommate, the use of protective barriers such as masks, gowns and gloves, a special emphasis on handwashing (which is always very important), and special handling of contaminated articles. "]
[null,"Start time: The assessment hospital or EMS agency receives notification from the health department of an incoming patient suspected of Ebola or other special pathogen, or patient’s arrival (if no notification)."]
[null,"* Note: Health care facility and EMS  involve all hospital or EMS personnel in the facility or transport unit in either clinical or non-clinical roles"]
[]
[]
["Number",12]
["Part ","A"]
["Activity","Activity B: Assure Readiness of Assessment Hospitals."]
["Measure","Proportion of emergency department staff trained at least annually in infection control and safety."]
["Reporting Element","Assessment Hospital"]
["Data Source","Assessment Hospital"]
["Measure ","Numerator: Number of emergency department staff trained at least annually in infection control and safety."]
[null,"Denominator:  Total number of emergency department staff."]
["Goal","100% of emergency department staff"]
["Definitions","Infection control and safety: Policies and procedures used to minimize the risk of spreading infections, especially in health care facilities (e.g. identification/isolation principles, clinical protocols for laboratory and patient care while in PPE, and bodily fluid clean-up/containment)."]
[]
[]
["Number",13]
["Part ","A"]
["Activity","Activity B: Assure Readiness of Assessment Hospitals."]
["Measure","Proportion of intensive care unit staff trained at least annually in infection control and safety."]
["Reporting Element","Assessment Hospital"]
["Data Source","Assessment Hospital "]
["Metrics","Numerator: Number of intensive care unit staff trained at least annually in infection control and safety."]
[null,"Denominator: Total number of intensive care unit staff."]
["Goal ","100% of intensive care unit staff"]
["Definitions","Infection control and safety: Policies and procedures used to minimize the risk of spreading infections, especially in health care facilities (e.g. identification/isolation principles, clinical protocols for laboratory and patient care while in PPE, and bodily fluid clean-up/containment)."]
[]
[]
["Number",14]
["Part ","A"]
["Activity","Activity B: Assure Readiness of Assessment Hospitals."]
["Measure","Proportion of assessment hospitals that can access their PPE supply (i.e., know location and have sufficient quantity of unexpired supply) within 10 minutes of transfer notification or arrival, if no notification, of a patient suspected with Ebola or other special pathogen."]
["Reporting Element","Assessment Hospital"]
["Data Source","Assessment Hospital Exercise  "]
["Metrics","Numerator: Number of assessment hospitals that can access their PPE supply within 10 minutes of transfer notification or arrival, if no notification, of a patient suspected with Ebola  or other special pathogen."]
[null,"Denominator: Number of assessment hospitals in the awardee’s jurisdiction."]
["Goal ","100% of Assessment Hospitals"]
["Definitions","Assessment Hospital: Pre-designated facilities that are prepared to receive and isolate a PUI for EVD and care for the patient until an Ebola diagnosis can be confirmed or ruled out and until discharge or transfer is completed."]
[null,"Transfer Notification: The ETC receives notification from the health department, assessment hospital, or EMS of an incoming patient suspected of Ebola or other special pathogen. "]
[null,"PPE Access: The ability to identify the location and have sufficient quantity of unexpired supply of PPE at the patient care location (e.g. emergency department, intensive care unit, Ebola treatment unit)."]
[null,"Sufficient: The extent to which the availability of PPE supplies can meet the pre-identified needs (i.e., CDC guidelines, needs assessment, CONOPS)."]
[]
[]
["Number",15]
["Part ","A"]
["Activity","Activity C: Develop Capabilities of Health Care Coalitions to enable their members to care for Ebola patients."]
["Measure (Ebola)","Proportion of frontline facilities that receive information from their coalition on the quantity and location of personal protective equipment (PPE) supply within 8 hours of a patient under investigation’s (PUI) arrival at a coalition member facility. "]
["Measure (OSP)","Proportion of frontline facilities that receive information from their coalition on the quantity and location of personal protective equipment (PPE) supply within 8 hours of a suspected patient arrival at a coalition member facility."]
["Reporting Element","Frontline Facility"]
["Data Source","Coalition Exercise "]
["Metrics","Numerator: Number of frontline facilities that receive information about PPE quantities and locations of PPE from their coalition within 8 hours of a patient under investigation’s (PUI) arrival at a coalition member’s facility. "]
[null,"Denominator: Total number of frontline facilities in the coalition. "]
["Goal ","100% of frontline facilities"]
["Definitions","Frontline Facility: Frontline facilities are hospitals and other health care providers that are not designated Ebola assessment hospitals or Ebola treatment centers that have the possibility of a suspected Ebola or other special pathogen patient encounter if a patient were to access the health care system."]
[]
[]
["Number",16]
["Part ","A"]
["Activity","Activity C: Develop Capabilities of Health Care Coalitions to enable their members to care for Ebola patients."]
["Measure","Proportion of frontline facilities that have received coalition-funded training. "]
["Reporting Element","Coalition"]
["Data Source","Coalition"]
["Metrics","Numerator: Total number of frontline facilities that received coalition-funded training."]
[null,"Denominator: Total number of frontline facilities in the coalition."]
["Goal","75% of frontline facilities received coalition-funded training"]
["Definitions","Frontline Facility: Frontline facilities are hospitals and other health care providers that are not designated Ebola assessment hospitals or Ebola treatment centers that have the possibility of a suspected Ebola patient encounter if a patient were to access the health care system outside of the active monitoring/direct active monitoring program. "]
[]
[]
["Number",17]
["Part ","A"]
["Activity","Activity C: Develop Capabilities of Health Care Coalitions to enable their members to care for Ebola patients."]
["Measure","Proportion of EMS agencies engaged in all phases of the Ebola and other special pathogen preparedness process, of those that are required to execute the awardee’s CONOPs that are. "]
["Reporting Element","Coalition"]
["Data Source","Coalitions and awardee"]
["Metrics","Numerator: Number of EMS agencies engaged in all phases of Ebola and other special pathogen preparedness process, of those required to execute the awardee’s CONOPs."]
[null,"Denominator:  Number of EMS agencies that are required to execute the awardee’s CONOPs"]
["Goal","100% of EMS agencies"]
["Definitions","EMS agencies required to execute the awardee’s CONOPS: EMS agencies that will provide 9-1-1 emergency medical services to suspect Ebola patients’ homes or other locations; inter-facility EMS agencies that will transport suspect or confirmed patients with Ebola between frontline health care facilities, assessment hospitals, Ebola treatment centers, regional Ebola and other special pathogen treatment centers, and airports."]
[null,"All Phases of the Ebola and other special pathogen Preparedness Process: All Phases includes planning, training, exercising, and responding with other Ebola preparedness partners."]
[]
[]
["Number",18]
["Part ","A"]
["Activity","Activity C: Develop Capabilities of Health Care Coalitions to enable their members to care for Ebola and other special pathogen patients."]
["Measure","Proportion of coalitions within an awardee’s jurisdiction that participate in the Health care-Associated Infection (HAI)/Infection Control "]
[null,"advisory group "]
["Reporting Element","Coalition"]
["Data Source","Awardee"]
["Metrics","Numerator: Number of coalitions participating in the HAI Advisory group."]
[null,"Denominator: Number of coalitions within an Awardees jurisdiction."]
["Goal","80% of coalitions participate in HAI Advisory Group"]
["Definitions","HAI Advisory Group: An advisory committee charged with making recommendations on the prevention of health care-associated infections."]

{"sheet":"Ebola Part A - Admin Info","index":1,"n_rows":12,"n_cols":28,"rows_kept":12,"merged":[[0,0,0,5],[1,1,1,4],[2,1,2,4],[3,1,3,4],[4,1,4,4],[5,1,5,4],[6,1,6,4],[7,1,7,4],[8,1,8,4],[9,1,9,4],[10,1,10,4],[11,1,11,4]]}
["U.S. Department of Health and Human Services\nHospital Preparedness Program (HPP)\nEbola Part A End-of-Year Preparedness Measures\nAdministrative Information"]
[null,"Awardee",{"$nulls":3},"Maryland"]
[null,"Point of Contact"]
[null,"Address  "]
[null,"City/Town",{"$nulls":25},"Select"]
[null,"State/Province",{"$nulls":25},"Jurisdiction planned and exercised an Ebola scenario in Year 2"]
[null,"Zip/Postal Code",{"$nulls":25},"Jurisdiction planned and exercised an other special pathogen scenario in Year 2"]
[null,"Email Address"]
[null,"Phone Number"]
["Note: Please enter the total amount that is added together all year in Year 3.","Total Amount Allocated"]
[null,"Total Amount Disbursed"]
[null,"Status of the Jurisdiction Facilities",{"$nulls":3},"Select"]

{"sheet":"Ebola Part A - ETC(s)","index":2,"n_rows":108,"n_cols":28,"rows_kept":108,"merged":[[0,0,0,7]]}
["U.S. Department of Health and Human Services\nHospital Preparedness Program (HPP)\nEbola Part A End-of-Year Preparedness Measures\nEbola Treatment Centers (ETCs)"]
["Facility Name*","Address","City","State","Zip code","Amount Allocated","Amount Disbursed","Status (Choose from the Dropdown List)"]
["Total Amount",{"$nulls":4},{"$f":"SUM(F4:F101)","v":{"v":0,"d":"$0.00"}},{"$f":"SUM(G4:G101)","v":{"v":0,"d":"$0.00"}}]
["University of Maryland, Medical Center","22 S Greene St","Baltimore","Maryland",21201,null,null,"Active ETC, exercising Ebola"]
["Johns Hopkins Hospital","1800 Orleans Street","Baltimore","Maryland",21287,null,null,"Active ETC, exercising OSP"]
[{"$nulls":7},"Select"]
[{"$f":"IF('Ebola Part A - AH(s)'!H4=\"AH switched to ETC in year 2, exercising Ebola\",'Ebola Part A - AH(s)'!A4,\"\")","v":""},{"$f":"IF('Ebola Part A - AH(s)'!$H4=\"AH switched to ETC In Year 2, exercising Ebola\",'Ebola Part A - AH(s)'!B4,\"\")","v":""},{"$f":"IF('Ebola Part A - AH(s)'!$H4=\"AH switched to ETC In Year 2, exercising Ebola\",'Ebola Part A - AH(s)'!C4,\"\")","v":""},{"$f":"IF('Ebola Part A - AH(s)'!$H4=\"AH switched to ETC In Year 2, exercising Ebola\",'Ebola Part A - AH(s)'!D4,\"\")","v":""},{"$f":"IF('Ebola Part A - AH(s)'!$H4=\"AH switched to ETC In Year 2, exercising Ebola\",'Ebola Part A - AH(s)'!E4,\"\")","v":""},null,null,"Select"]
[{"$f":"IF('Ebola Part A - AH(s)'!H5=\"AH switched to ETC in year 2, exercising Ebola\",'Ebola Part A - AH(s)'!A5,\"\")","v":""},{"$f":"IF('Ebola Part A - AH(s)'!$H5=\"AH switched to ETC In Year 2, exercising Ebola\",'Ebola Part A - AH(s)'!B5,\"\")","v":""},{"$f":"IF('Ebola Part A - AH(s)'!$H5=\"AH switched to ETC In Year 2, exercising Ebola\",'Ebola Part A - AH(s)'!C5,\"\")","v":""},{"$f":"IF('Ebola Part A - AH(s)'!$H5=\"AH switched to ETC In Year 2, exercising Ebola\",'Ebola Part A - AH(s)'!D5,\"\")","v":""},{"$f":"IF('Ebola Part A - AH(s)'!$H5=\"AH switched to ETC In Year 2, exercising Ebola\",'Ebola Part A - AH(s)'!E5,\"\")","v":""},null,null,"Select"]
[{"$f":"IF('Ebola Part A - AH(s)'!H6=\"AH switched to ETC in year 2, exercising Ebola\",'Ebola Part A - AH(s)'!A6,\"\")","v":""},{"$f":"IF('Ebola Part A - AH(s)'!$H6=\"AH switched to ETC In Year 2, exercising Ebola\",'Ebola Part A - AH(s)'!B6,\"\")","v":""},{"$f":"IF('Ebola Part A - AH(s)'!$H6=\"AH switched to ETC In Year 2, exercising Ebola\",'Ebola Part A - AH(s)'!C6,\"\")","v":""},{"$f":"IF('Ebola Part A - AH(s)'!$H6=\"AH switched to ETC In Year 2, exercising Ebola\",'Ebola Part A - AH(s)'!D6,\"\")","v":""},{"$f":"IF('Ebola Part A - AH(s)'!$H6=\"AH switched to ETC In Year 2, exercising Ebola\",'Ebola Part A - AH(s)'!E6,\"\")","v":""},null,null,"Select"]
[{"$f":"IF('Ebola Part A - AH(s)'!H7=\"AH switched to ETC in year 2, exercising Ebola\",'Ebola Part A - AH(s)'!A7,\"\")","v":""},{"$f":"IF('Ebola Part A - AH(s)'!$H7=\"AH switched to ETC In Year 2, exercising Ebola\",'Ebola Part A - AH(s)'!B7,\"\")","v":""},{"$f":"IF('Ebola Part A - AH(s)'!$H7=\"AH switched to ETC In Year 2, exercising Ebola\",'Ebola Part A - AH(s)'!C7,\"\")","v":""},{"$f":"IF('Ebola Part A - AH(s)'!$H7=\"AH switched to ETC In Year 2, exercising Ebola\",'Ebola Part A - AH(s)'!D7,\"\")","v":""},{"$f":"IF('Ebola Part A - AH(s)'!$H7=\"AH switched to ETC In Year 2, exercising Ebola\",'Ebola Part A - AH(s)'!E7,\"\")","v":""},null,null,"Select"]
[{"$f":"IF('Ebola Part A - AH(s)'!H8=\"AH switched to ETC in year 2, exercising Ebola\",'Ebola Part A - AH(s)'!A8,\"\")","v":""},{"$f":"IF('Ebola Part A - AH(s)'!$H8=\"AH switched to ETC In Year 2, exercising Ebola\",'Ebola Part A - AH(s)'!B8,\"\")","v":""},{"$f":"IF('Ebola Part A - AH(s)'!$H8=\"AH switched to ETC In Year 2, exercising Ebola\",'Ebola Part A - AH(s)'!C8,\"\")","v":""},{"$f":"IF('Ebola Part A - AH(s)'!$H8=\"AH switched to ETC In Year 2, exercising Ebola\",'Ebola Part A - AH(s)'!D8,\"\")","v":""},{"$f":"IF('Ebola Part A - AH(s)'!$H8=\"AH switched to ETC In Year 2, exercising Ebola\",'Ebola Part A - AH(s)'!E8,\"\")","v":""},null,null,"Select"]
[{"$f":"IF('Ebola Part A - AH(s)'!H9=\"AH switched to ETC in year 2, exercising Ebola\",'Ebola Part A - AH(s)'!A9,\"\")","v":""},{"$f":"IF('Ebola Part A - AH(s)'!$H9=\"AH switched to ETC In Year 2, exercising Ebola\",'Ebola Part A - AH(s)'!B9,\"\")","v":""},{"$f":"IF('Ebola Part A - AH(s)'!$H9=\"AH switched to ETC In Year 2, exercising Ebola\",'Ebola Part A - AH(s)'!C9,\"\")","v":""},{"$f":"IF('Ebola Part A - AH(s)'!$H9=\"AH switched to ETC In Year 2, exercising Ebola\",'Ebola Part A - AH(s)'!D9,\"\")","v":""},{"$f":"IF('Ebola Part A - AH(s)'!$H9=\"AH switched to ETC In Year 2, exercising Ebola\",'Ebola Part A - AH(s)'!E9,\"\")","v":""},null,null,"Select"]
[{"$f":"IF('Ebola Part A - AH(s)'!H10=\"AH switched to ETC in year 2, exercising Ebola\",'Ebola Part A - AH(s)'!A10,\"\")","v":""},{"$f":"IF('Ebola Part A - AH(s)'!$H10=\"AH switched to ETC In Year 2, exercising Ebola\",'Ebola Part A - AH(s)'!B10,\"\")","v":""},{"$f":"IF('Ebola Part A - AH(s)'!$H10=\"AH switched to ETC In Year 2, exercising Ebola\",'Ebola Part A - AH(s)'!C10,\"\")","v":""},{"$f":"IF('Ebola Part A - AH(s)'!$H10=\"AH switched to ETC In Year 2, exercising Ebola\",'Ebola Part A - AH(s)'!D10,\"\")","v":""},{"$f":"IF('Ebola Part A - AH(s)'!$H10=\"AH switched to ETC In Year 2, exercising Ebola\",'Ebola Part A - AH(s)'!E10,\"\")","v":""},null,null,"Select"]
["*Note:If any assessment hospitals (AHs) from the previous year have switched to an ETC in the Year 3, you do not need to enter the information again in this worksheet. Please go to the Ebola Part A – AH(s) worksheet and change the status of the pre-populated facility, which will automatically appear in the Ebola Part A - ETC(s) worksheet."]
{"$rows_empty":88}
[{"$nulls":27},"Select"]
[{"$nulls":27},"Active ETC, exercising Ebola"]
[{"$nulls":27},"Active ETC, exercising OSP"]
[{"$nulls":27},"ETC switched to AH in Year 3, exercising Ebola"]
[{"$nulls":27},"ETC switched to FH in Year 3"]
[{"$nulls":27},"No longer a participating facility"]

{"sheet":"Ebola Part A - AH(s)","index":3,"n_rows":14,"n_cols":27,"rows_kept":14,"merged":[[0,0,0,7]]}
["U.S. Department of Health and Human Services\nHospital Preparedness Program (HPP)\nEbola Part A End-of-Year Preparedness Measures\nAssessment Hospitals (AHs)",{"$nulls":25},"Select"]
["Facility Name*","Address","City","State","Zip code","Amount Allocated","Amount Disbursed","Status (Choose from the Dropdown List)",{"$nulls":18},"Active AH, exercising Ebola"]
["Total Amount",{"$nulls":4},{"$f":"SUM(F4:F127)","v":{"v":0,"d":"$0.00"}},{"$f":"SUM(G4:G127)","v":{"v":0,"d":"$0.00"}},{"$nulls":19},"Active AH, exercising OSP"]
["Anne Arundel Medical Center","5712 Warwick Pl","Chevy Chase","Maryland",20815,null,null,"Active AH, exercising Ebola",{"$nulls":18},"AH switched to ETC in Year 3, exercising Ebola"]
["Frederick Memorial Hospital","400 W 7th St","Frederick","Maryland",21701,null,null,"Active AH, exercising OSP",{"$nulls":18},"AH switched to FH in Year 3"]
["Holy Cross Hospital","1500 Forest Glen Road","Silver Spring","Maryland",20910,null,null,"Select",{"$nulls":18},"No longer a participating facility"]
["Peninsula Regional Medical Center","100 E Carroll St","Salisbury","Maryland",21801,null,null,"Select"]
["MedStar Southern Maryland Hospital Center","7503 Surratt's Road","Clinton","Maryland",20735,null,null,"Select"]
[{"$f":"IF('Ebola Part A - ETC(s)'!$H4=\"ETC switched to AH in Year 2, exercising Ebola\",'Ebola Part A - ETC(s)'!A4,\"\")","v":""},{"$f":"IF('Ebola Part A - ETC(s)'!$H4=\"ETC switched to AH in Year 2, exercising Ebola\",'Ebola Part A - ETC(s)'!B4,\"\")","v":""},{"$f":"IF('Ebola Part A - ETC(s)'!$H4=\"ETC switched to AH in Year 2, exercising Ebola\",'Ebola Part A - ETC(s)'!C4,\"\")","v":""},{"$f":"IF('Ebola Part A - ETC(s)'!$H4=\"ETC switched to AH in Year 2, exercising Ebola\",'Ebola Part A - ETC(s)'!D4,\"\")","v":""},{"$f":"IF('Ebola Part A - ETC(s)'!$H4=\"ETC switched to AH in Year 2, exercising Ebola\",'Ebola Part A - ETC(s)'!E4,\"\")","v":""},null,null,"Select"]
[{"$f":"IF('Ebola Part A - ETC(s)'!$H$5=\"ETC switched to AH in Year 2, exercising Ebola\",'Ebola Part A - ETC(s)'!A5,\"\")","v":""},{"$f":"IF('Ebola Part A - ETC(s)'!$H5=\"ETC switched to AH In Year 2, exercising Ebola\",'Ebola Part A - ETC(s)'!B5,\"\")","v":""},{"$f":"IF('Ebola Part A - ETC(s)'!$H5=\"ETC switched to AH In Year 2, exercising Ebola\",'Ebola Part A - ETC(s)'!C5,\"\")","v":""},{"$f":"IF('Ebola Part A - ETC(s)'!$H5=\"ETC switched to AH In Year 2, exercising Ebola\",'Ebola Part A - ETC(s)'!D5,\"\")","v":""},{"$f":"IF('Ebola Part A - ETC(s)'!$H5=\"ETC switched to AH In Year 2, exercising Ebola\",'Ebola Part A - ETC(s)'!E5,\"\")","v":""},null,null,"Select"]
[{"$f":"IF('Ebola Part A - ETC(s)'!$H$6=\"ETC switched to AH in Year 2, exercising Ebola\",'Ebola Part A - ETC(s)'!A6,\"\")","v":""},{"$f":"IF('Ebola Part A - ETC(s)'!$H6=\"ETC switched to AH In Year 2, exercising Ebola\",'Ebola Part A - ETC(s)'!B6,\"\")","v":""},{"$f":"IF('Ebola Part A - ETC(s)'!$H6=\"ETC switched to AH In Year 2, exercising Ebola\",'Ebola Part A - ETC(s)'!C6,\"\")","v":""},{"$f":"IF('Ebola Part A - ETC(s)'!$H6=\"ETC switched to AH In Year 2, exercising Ebola\",'Ebola Part A - ETC(s)'!D6,\"\")","v":""},{"$f":"IF('Ebola Part A - ETC(s)'!$H6=\"ETC switched to AH In Year 2, exercising Ebola\",'Ebola Part A - ETC(s)'!E6,\"\")","v":""},null,null,"Select"]
[{"$nulls":7},"Select"]
[{"$nulls":7},"Select"]
["*Note:If any Ebola Treatment Center (ETC) from the previous year has switched to an AH in the year 3, you do not need to enter the information again. Please go to Ebola Part A - ETC(s) worksheet and change the status of the pre-populated facility, which will automatically appear in the Ebola Part A - AH(s) worksheet."]

{"sheet":"Ebola Part A - Awardee HCC PMs","index":4,"n_rows":43,"n_cols":83,"rows_kept":43,"merged":[[1,0,1,2],[10,0,10,2],[12,0,12,2],[14,0,14,2]]}
["Performance Measure Number","U.S. Department of Health and Human Services\nHospital Preparedness Program (HPP)\nEbola Part A End-of-Year Preparedness Measures\nAwardee/Healthcare Coalition (HCC) Performance Measures","Response"]
["Activity A: Develop a Concept of Operations"]
[null,"Does the concept of operations include a signed agreement between your jurisdiction and the jurisdiction where the regional Ebola and other special pathogen treatment center is located allowing for the transfer of a patient with Ebola",{"$nulls":26},"Health Care Coalitions",{"$nulls":53},"Yes"]
[null,"Does the concept of operations include a plan for coordinating with other states within the region to identify airports that can accept air transport of Ebola patients",{"$nulls":26},"Frontline Facilities",{"$nulls":53},"No"]
[null,"Does the concept of operations include a jurisdictional-level communications strategy for notifying health care partners",{"$nulls":26},"EMS"]
[null,"Does the concept of operations include a plan for the safe intra-state transport of potential or confirmed Ebola patients",{"$nulls":26},"Assessment Hospitals"]
[null,"Does the concept of operations include a plan for the safe inter-state transport of potential or confirmed Ebola patients to a regional Ebola and other special pathogen treatment center",{"$nulls":26},"Ebola Treatment Centers"]
[null,"If \"NO\", please specify the date you will meet these requirement (MM/DD/YYYY)",{"$nulls":26},"Other (please specify)"]
[null,"Does your concept of operations identify roles and responsibilities for the following: (choose all that apply)"]
[null,"If \"Other\", please specify"]
["Activity B: Assure Readiness of Ebola Treatment Centers"]
[null,"Total Number of Ebola treatment centers (ETCs) (Denominator for PM7)",{"$f":"COUNT(D:D,E:E,F:F)","v":2},{"$f":"IF('Ebola Part A - ETC(s)'!H4=\"Active ETC, exercising Ebola\", 1, \" \")","v":1},{"$f":"IF('Ebola Part A - ETC(s)'!H4=\"Active ETC, exercising OSP\", 1, \" \")","v":" "},{"$f":"IF('Ebola Part A - AH(s)'!H4=\"AH switched to ETC in Year 3, exercising Ebola\", 1, \" \")","v":" "},{"$f":"IF('Ebola Part A - AH(s)'!H4=\"Active AH, exercising Ebola\", 1, \" \")","v":1},{"$f":"IF('Ebola Part A - AH(s)'!I4=\"Active AH, exercising Ebola\", 1, \" \")","v":" "}]
["Activity B: Assure Readiness of Assessment Hospitals",null,null,{"$f":"IF('Ebola Part A - ETC(s)'!H5=\"Active ETC, exercising Ebola\", 1, \" \")","v":" "},{"$f":"IF('Ebola Part A - ETC(s)'!H5=\"Active ETC, exercising OSP\", 1, \" \")","v":1},{"$f":"IF('Ebola Part A - AH(s)'!H5=\"AH switched to ETC in Year 3, exercising Ebola\", 1, \" \")","v":" "},{"$f":"IF('Ebola Part A - AH(s)'!H5=\"Active AH, exercising Ebola\", 1, \" \")","v":" "}]
[null,"Total Number of Assessment hospitals (AHs) (Denominator for PM14)",{"$f":"COUNT(G:G)","v":1},{"$f":"IF('Ebola Part A - ETC(s)'!H6=\"Active ETC, exercising Ebola\", 1, \" \")","v":" "},{"$f":"IF('Ebola Part A - ETC(s)'!H6=\"Active ETC, exercising OSP\", 1, \" \")","v":" "},{"$f":"IF('Ebola Part A - AH(s)'!H6=\"AH switched to ETC in Year 3, exercising Ebola\", 1, \" \")","v":" "},{"$f":"IF('Ebola Part A - AH(s)'!H6=\"Active AH, exercising Ebola\", 1, \" \")","v":" "}]
["Activity C : Develop Capabilities of Health Care Coalitions to enable their members to care for Ebola patients\n",null,null,{"$f":"IF('Ebola Part A - ETC(s)'!H7=\"Active ETC, exercising Ebola\", 1, \" \")","v":" "},{"$f":"IF('Ebola Part A - ETC(s)'!H7=\"Active ETC, exercising OSP\", 1, \" \")","v":" "},{"$f":"IF('Ebola Part A - AH(s)'!H7=\"AH switched to ETC in Year 3, exercising Ebola\", 1, \" \")","v":" "},{"$f":"IF('Ebola Part A - AH(s)'!H7=\"Active AH, exercising Ebola\", 1, \" \")","v":" "}]
[null,"Total Number of frontline facilities in the coalition (Denominator for PM15,PM15(OSP),PM16)",null,{"$f":"IF('Ebola Part A - ETC(s)'!H8=\"Active ETC, exercising Ebola\", 1, \" \")","v":" "},{"$f":"IF('Ebola Part A - ETC(s)'!H8=\"Active ETC, exercising OSP\", 1, \" \")","v":" "},{"$f":"IF('Ebola Part A - AH(s)'!H8=\"AH switched to ETC in Year 3, exercising Ebola\", 1, \" \")","v":" "},{"$f":"IF('Ebola Part A - AH(s)'!H8=\"Active AH, exercising Ebola\", 1, \" \")","v":" "}]
[15,"Number of frontline facilities that receive information from their coalition on the quantity and location of personal protective equipment (PPE) supply within 8 hours of a patient under investigation’s (PUI) arrival at a coalition member facility (Goal:100% of frontline facilities)",null,{"$f":"IF('Ebola Part A - ETC(s)'!H9=\"Active ETC, exercising Ebola\", 1, \" \")","v":" "},{"$f":"IF('Ebola Part A - ETC(s)'!H9=\"Active ETC, exercising OSP\", 1, \" \")","v":" "},{"$f":"IF('Ebola Part A - AH(s)'!H9=\"AH switched to ETC in Year 3, exercising Ebola\", 1, \" \")","v":" "},{"$f":"IF('Ebola Part A - AH(s)'!H9=\"Active AH, exercising Ebola\", 1, \" \")","v":" "}]
["15(OSP)","Number of frontline facilities that receive information from their coalition on the quantity and location of personal protective equipment (PPE) supply within 8 hours of a suspected patient arrival at a coalition member facility (Goal:100% of frontline facilities)",null,{"$f":"IF('Ebola Part A - ETC(s)'!H10=\"Active ETC, exercising Ebola\", 1, \" \")","v":" "},{"$f":"IF('Ebola Part A - ETC(s)'!H10=\"Active ETC, exercising OSP\", 1, \" \")","v":" "},{"$f":"IF('Ebola Part A - AH(s)'!H10=\"AH switched to ETC in Year 3, exercising Ebola\", 1, \" \")","v":" "},{"$f":"IF('Ebola Part A - AH(s)'!H10=\"Active AH, exercising Ebola\", 1, \" \")","v":" "}]
[16,"Number of frontline facilities that have received coalition-funded training (Goal:75% of frontline facilities received coalition-funded training)",null,{"$f":"IF('Ebola Part A - ETC(s)'!H11=\"Active ETC, exercising Ebola\", 1, \" \")","v":" "},{"$f":"IF('Ebola Part A - ETC(s)'!H11=\"Active ETC, exercising OSP\", 1, \" \")","v":" "},{"$f":"IF('Ebola Part A - AH(s)'!H11=\"AH switched to ETC in Year 3, exercising Ebola\", 1, \" \")","v":" "},{"$f":"IF('Ebola Part A - AH(s)'!H11=\"Active AH, exercising Ebola\", 1, \" \")","v":" "}]
[null,"Total Number of EMS agencies that are required to execute the awardee’s CONOPs (Denominator for PM17)",null,{"$f":"IF('Ebola Part A - ETC(s)'!H12=\"Active ETC, exercising Ebola\", 1, \" \")","v":" "},{"$f":"IF('Ebola Part A - ETC(s)'!H12=\"Active ETC, exercising OSP\", 1, \" \")","v":" "},{"$f":"IF('Ebola Part A - AH(s)'!H12=\"AH switched to ETC in Year 3, exercising Ebola\", 1, \" \")","v":" "},{"$f":"IF('Ebola Part A - AH(s)'!H12=\"Active AH, exercising Ebola\", 1, \" \")","v":" "}]
[17,"Number of EMS agencies engaged in all phases of Ebola and other special pathogen preparedness process, of those required to execute the awardee’s CONOPs (Goal:100% of EMS agencies)",null,{"$f":"IF('Ebola Part A - ETC(s)'!H13=\"Active ETC, exercising Ebola\", 1, \" \")","v":" "},{"$f":"IF('Ebola Part A - ETC(s)'!H13=\"Active ETC, exercising OSP\", 1, \" \")","v":" "},{"$f":"IF('Ebola Part A - AH(s)'!H13=\"AH switched to ETC in Year 3, exercising Ebola\", 1, \" \")","v":" "},{"$f":"IF('Ebola Part A - AH(s)'!H13=\"Active AH, exercising Ebola\", 1, \" \")","v":" "}]
[null,"Total Number of coalitions within the jurisdiction (Denominator for PM18)",5,{"$f":"IF('Ebola Part A - ETC(s)'!H14=\"Active ETC, exercising Ebola\", 1, \" \")","v":" "},{"$f":"IF('Ebola Part A - ETC(s)'!H14=\"Active ETC, exercising OSP\", 1, \" \")","v":" "},{"$f":"IF('Ebola Part A - AH(s)'!H14=\"AH switched to ETC in Year 3, exercising Ebola\", 1, \" \")","v":" "},{"$f":"IF('Ebola Part A - AH(s)'!H14=\"Active AH, exercising Ebola\", 1, \" \")","v":" "}]
[18,"Number of coalitions within an awardee’s jurisdiction that participate in the Health care-Associated Infection (HAI)/Infection Control (Goal:80% of coalitions participate in HAI Advisory Group)",null,{"$f":"IF('Ebola Part A - ETC(s)'!H15=\"Active ETC, exercising Ebola\", 1, \" \")","v":" "},{"$f":"IF('Ebola Part A - ETC(s)'!H15=\"Active ETC, exercising OSP\", 1, \" \")","v":" "},{"$f":"IF('Ebola Part A - AH(s)'!H15=\"AH switched to ETC in Year 3, exercising Ebola\", 1, \" \")","v":" "},{"$f":"IF('Ebola Part A - AH(s)'!H15=\"Active AH, exercising Ebola\", 1, \" \")","v":" "}]
[null,"Comments/Additional information",null,{"$f":"IF('Ebola Part A - ETC(s)'!H16=\"Active ETC, exercising Ebola\", 1, \" \")","v":" "},{"$f":"IF('Ebola Part A - ETC(s)'!H16=\"Active ETC, exercising OSP\", 1, \" \")","v":" "},{"$f":"IF('Ebola Part A - AH(s)'!H16=\"AH switched to ETC in Year 3, exercising Ebola\", 1, \" \")","v":" "},{"$f":"IF('Ebola Part A - AH(s)'!H16=\"Active AH, exercising Ebola\", 1, \" \")","v":" "}]
[{"$nulls":3},{"$f":"IF('Ebola Part A - ETC(s)'!H17=\"Active ETC, exercising Ebola\", 1, \" \")","v":" "},{"$f":"IF('Ebola Part A - ETC(s)'!H17=\"Active ETC, exercising OSP\", 1, \" \")","v":" "},{"$f":"IF('Ebola Part A - AH(s)'!H17=\"AH switched to ETC in Year 3, exercising Ebola\", 1, \" \")","v":" "},{"$f":"IF('Ebola Part A - AH(s)'!H17=\"Active AH, exercising Ebola\", 1, \" \")","v":" "}]
[{"$nulls":4},{"$f":"IF('Ebola Part A - ETC(s)'!H18=\"Active ETC, exercising OSP\", 1, \" \")","v":" "},{"$f":"IF('Ebola Part A - AH(s)'!H18=\"AH switched to ETC in Year 3, exercising Ebola\", 1, \" \")","v":" "}]
[{"$nulls":4},{"$f":"IF('Ebola Part A - ETC(s)'!H19=\"Active ETC, exercising OSP\", 1, \" \")","v":" "},{"$f":"IF('Ebola Part A - AH(s)'!H19=\"AH switched to ETC in Year 3, exercising Ebola\", 1, \" \")","v":" "}]
[{"$nulls":4},{"$f":"IF('Ebola Part A - ETC(s)'!H20=\"Active ETC, exercising OSP\", 1, \" \")","v":" "},{"$f":"IF('Ebola Part A - AH(s)'!H20=\"AH switched to ETC in Year 3, exercising Ebola\", 1, \" \")","v":" "}]
[{"$nulls":4},{"$f":"IF('Ebola Part A - ETC(s)'!H21=\"Active ETC, exercising OSP\", 1, \" \")","v":" "},{"$f":"IF('Ebola Part A - AH(s)'!H21=\"AH switched to ETC in Year 3, exercising Ebola\", 1, \" \")","v":" "}]
[{"$nulls":4},{"$f":"IF('Ebola Part A - ETC(s)'!H22=\"Active ETC, exercising OSP\", 1, \" \")","v":" "},{"$f":"IF('Ebola Part A - AH(s)'!H22=\"AH switched to ETC in Year 3, exercising Ebola\", 1, \" \")","v":" "}]
[{"$nulls":4},{"$f":"IF('Ebola Part A - ETC(s)'!H23=\"Active ETC, exercising OSP\", 1, \" \")","v":" "},{"$f":"IF('Ebola Part A - AH(s)'!H23=\"AH switched to ETC in Year 3, exercising Ebola\", 1, \" \")","v":" "}]
[{"$nulls":4},{"$f":"IF('Ebola Part A - ETC(s)'!H24=\"Active ETC, exercising OSP\", 1, \" \")","v":" "},{"$f":"IF('Ebola Part A - AH(s)'!H24=\"AH switched to ETC in Year 3, exercising Ebola\", 1, \" \")","v":" "}]
[{"$nulls":4},{"$f":"IF('Ebola Part A - ETC(s)'!H25=\"Active ETC, exercising OSP\", 1, \" \")","v":" "},{"$f":"IF('Ebola Part A - AH(s)'!H25=\"AH switched to ETC in Year 3, exercising Ebola\", 1, \" \")","v":" "}]
[{"$nulls":4},{"$f":"IF('Ebola Part A - ETC(s)'!H26=\"Active ETC, exercising OSP\", 1, \" \")","v":" "},{"$f":"IF('Ebola Part A - AH(s)'!H26=\"AH switched to ETC in Year 3, exercising Ebola\", 1, \" \")","v":" "}]
[{"$nulls":4},{"$f":"IF('Ebola Part A - ETC(s)'!H27=\"Active ETC, exercising OSP\", 1, \" \")","v":" "},{"$f":"IF('Ebola Part A - AH(s)'!H27=\"AH switched to ETC in Year 3, exercising Ebola\", 1, \" \")","v":" "}]
[{"$nulls":4},{"$f":"IF('Ebola Part A - ETC(s)'!H28=\"Active ETC, exercising OSP\", 1, \" \")","v":" "},{"$f":"IF('Ebola Part A - AH(s)'!H28=\"AH switched to ETC in Year 3, exercising Ebola\", 1, \" \")","v":" "}]
[{"$nulls":4},{"$f":"IF('Ebola Part A - ETC(s)'!H29=\"Active ETC, exercising OSP\", 1, \" \")","v":" "},{"$f":"IF('Ebola Part A - AH(s)'!H29=\"AH switched to ETC in Year 3, exercising Ebola\", 1, \" \")","v":" "}]
[{"$nulls":4},{"$f":"IF('Ebola Part A - ETC(s)'!H30=\"Active ETC, exercising OSP\", 1, \" \")","v":" "},{"$f":"IF('Ebola Part A - AH(s)'!H30=\"AH switched to ETC in Year 3, exercising Ebola\", 1, \" \")","v":" "}]
[{"$nulls":4},{"$f":"IF('Ebola Part A - ETC(s)'!H31=\"Active ETC, exercising OSP\", 1, \" \")","v":" "},{"$f":"IF('Ebola Part A - AH(s)'!H31=\"AH switched to ETC in Year 3, exercising Ebola\", 1, \" \")","v":" "}]
[{"$nulls":4},{"$f":"IF('Ebola Part A - ETC(s)'!H32=\"Active ETC, exercising OSP\", 1, \" \")","v":" "},{"$f":"IF('Ebola Part A - AH(s)'!H32=\"AH switched to ETC in Year 3, exercising Ebola\", 1, \" \")","v":" "}]
[{"$nulls":4},{"$f":"IF('Ebola Part A - ETC(s)'!H33=\"Active ETC, exercising OSP\", 1, \" \")","v":" "},{"$f":"IF('Ebola Part A - AH(s)'!H33=\"AH switched to ETC in Year 3, exercising Ebola\", 1, \" \")","v":" "}]
[{"$nulls":4},{"$f":"IF('Ebola Part A - ETC(s)'!H34=\"Active ETC, exercising OSP\", 1, \" \")","v":" "},{"$f":"IF('Ebola Part A - AH(s)'!H34=\"AH switched to ETC in Year 3, exercising Ebola\", 1, \" \")","v":" "}]
[{"$nulls":4},{"$f":"IF('Ebola Part A - ETC(s)'!H35=\"Active ETC, exercising OSP\", 1, \" \")","v":" "}]

{"sheet":"Ebola Part A - ETC Ebola PM","index":5,"n_rows":18,"n_cols":90,"rows_kept":18,"merged":[[0,0,1,0],[0,1,1,1],[0,2,0,11],[2,0,2,1],[2,4,2,5],[2,6,2,7],[2,8,2,9],[2,10,2,11],[4,0,4,1],[12,2,12,11]]}
["Performance Measure Number","U.S. Department of Health and Human Services\nHospital Preparedness Program (HPP)\nEbola Part A End-of-Year Preparedness Measures\nEbola Treatment Centers Ebola Performance Measures"," Ebola Treatment Centers Ebola Performance Measures"]
[null,null,{"$f":"IF('Ebola Part A - ETC(s)'!H4=\"Active ETC, exercising Ebola\",'Ebola Part A - ETC(s)'!A4,\"ETC1\")","v":"University of Maryland, Medical Center"},{"$f":"IF('Ebola Part A - ETC(s)'!H5=\"Active ETC, exercising Ebola\",'Ebola Part A - ETC(s)'!A5,\"ETC2\")","v":"ETC2"},{"$f":"IF('Ebola Part A - ETC(s)'!H6=\"Active ETC, exercising Ebola\",'Ebola Part A - ETC(s)'!A6,\"ETC3\")","v":"ETC3"},{"$f":"IF('Ebola Part A - ETC(s)'!H7=\"Active ETC, exercising Ebola\",'Ebola Part A - ETC(s)'!A7,\"ETC4\")","v":"ETC4"},{"$f":"IF('Ebola Part A - ETC(s)'!H8=\"Active ETC, exercising Ebola\",'Ebola Part A - ETC(s)'!A8,\"ETC5\")","v":"ETC5"},{"$f":"IF('Ebola Part A - ETC(s)'!H9=\"Active ETC, exercising Ebola\",'Ebola Part A - ETC(s)'!A9,\"ETC6\")","v":"ETC6"},{"$f":"IF('Ebola Part A - ETC(s)'!H10=\"Active ETC, exercising Ebola\",'Ebola Part A - ETC(s)'!A10,\"ETC7\")","v":"ETC7"},{"$f":"IF('Ebola Part A - ETC(s)'!H11=\"Active ETC, exercising Ebola\",'Ebola Part A - ETC(s)'!A11,\"ETC8\")","v":"ETC8"},{"$f":"IF('Ebola Part A - ETC(s)'!H12=\"Active ETC, exercising Ebola\",'Ebola Part A - ETC(s)'!A12,\"ETC9\")","v":"ETC9"},{"$f":"IF('Ebola Part A - ETC(s)'!H13=\"Active ETC, exercising Ebola\",'Ebola Part A - ETC(s)'!A13,\"ETC10\")","v":"ETC10"}]
["Activity A: Develop a Concept of Operations"]
[1,"Time, in minutes, it takes from an assessment hospital’s notification to the health department of the need for an inter-facility transfer of a patient confirmed with Ebola or other special pathogen to the arrival of a staffed and equipped EMS/inter-facility transport unit, as evidenced by a no-notice exercise (Goal: Within 240 minutes or 4 hours) "]
["Activity B: Assure Readiness of Ebola Treatment Centers",{"$nulls":88},"Health Care Coalitions"]
[null,"Total Number of rostered/covered staff (Denominator for PM2,PM5,PM6)",{"$nulls":87},"Frontline Facilities"]
[2,"Total Number of rostered/covered staff that are trained in safely donning and doffing personal protective equipment (PPE) (Goal : 100% of rostered/covered staff)",{"$nulls":87},"EMS"]
[3,"Time, in hours, it takes for all rostered/covered staff to receive just-in-time (JIT) training, upon notification of a patient with Ebola or other special pathogen at the regional Ebola and other special pathogen treatment center (Goal : Within 72 hours)",{"$nulls":87},"Assessment Hospitals"]
[4,"Time, in hours, until an Ebola treatment center is ready to admit a patient with Ebola or other special pathogen as evidenced by an exercise or actual patient transfer (Goal: Within 72 hours)",{"$nulls":87},"Ebola Treatment Centers"]
[5,"Number of rostered/covered staff contacted by hospital within 4 hours of a patient confirmed with Ebola or other special pathogen admission to a regional Ebola and other special pathogen treatment center (Goal : 100% of rostered/covered staff)",{"$nulls":87},"Other (please specify)"]
[6,"Number of rostered/covered staff contacted that indicated they are able to report to fulfill Ebola or other special pathogen-related staffing needs within 72 hours (Goal :100% of contacted rostered/covered staff)"]
[7,"Are the Ebola treatment centers (ETCs) able to access their PPE supply (i.e., know location and have sufficient quantity of unexpired supply) within 10 minutes of transfer notification or upon the patient’s arrival (if no notification) of a patient suspected of Ebola or other special pathogen? (Goal:100% of Ebola Treatment Centers)"]
[null,"Comments/Additional information"]
[]
[]
[]
[{"$nulls":20},"Yes"]
[{"$nulls":20},"No"]

{"sheet":"Ebola Part A - ETC OSP PM","index":6,"n_rows":10,"n_cols":12,"rows_kept":10,"merged":[[0,0,1,0],[0,1,1,1],[0,2,0,11],[2,0,2,1],[9,2,9,11]]}
["Performance Measure Number","U.S. Department of Health and Human Services\nHospital Preparedness Program (HPP)\nEbola Part A End-of-Year Preparedness Measures\nEbola Treatment Centers Other Special Pathogens Performance Measures","Ebola Treatment Centers Other Special Pathogens Performance Measures"]
[null,null,{"$f":"IF('Ebola Part A - ETC(s)'!$H4=\"Active ETC, exercising OSP\",'Ebola Part A - ETC(s)'!A4,\"ETC1\")","v":"ETC1"},{"$f":"IF('Ebola Part A - ETC(s)'!$H5=\"Active ETC, exercising OSP\",'Ebola Part A - ETC(s)'!A5,\"ETC2\")","v":"Johns Hopkins Hospital"},{"$f":"IF('Ebola Part A - ETC(s)'!$H6=\"Active ETC, exercising OSP\",'Ebola Part A - ETC(s)'!A6,\"ETC3\")","v":"ETC3"},{"$f":"IF('Ebola Part A - ETC(s)'!$H7=\"Active ETC, exercising OSP\",'Ebola Part A - ETC(s)'!A7,\"ETC4\")","v":"ETC4"},{"$f":"IF('Ebola Part A - ETC(s)'!$H8=\"Active ETC, exercising OSP\",'Ebola Part A - ETC(s)'!A8,\"ETC5\")","v":"ETC5"},{"$f":"IF('Ebola Part A - ETC(s)'!$H9=\"Active ETC, exercising OSP\",'Ebola Part A - ETC(s)'!A9,\"ETC6\")","v":"ETC6"},{"$f":"IF('Ebola Part A - ETC(s)'!$H10=\"Active ETC, exercising OSP\",'Ebola Part A - ETC(s)'!A10,\"ETC7\")","v":"ETC7"},{"$f":"IF('Ebola Part A - ETC(s)'!$H11=\"Active ETC, exercising OSP\",'Ebola Part A - ETC(s)'!A11,\"ETC8\")","v":"ETC8"},{"$f":"IF('Ebola Part A - ETC(s)'!$H12=\"Active ETC, exercising OSP\",'Ebola Part A - ETC(s)'!A12,\"ETC9\")","v":"ETC9"},{"$f":"IF('Ebola Part A - ETC(s)'!$H13=\"Active ETC, exercising OSP\",'Ebola Part A - ETC(s)'!A13,\"ETC10\")","v":"ETC10"}]
["Activity B: Assure Readiness of Ebola Treatment Centers"]
[null,"Total Number of rostered/covered staff (Denominator for PM2,PM5,PM6)"]
[2,"Total Number of rostered/covered staff that are trained in safely donning and doffing personal protective equipment (PPE) (Goal : 100% of rostered/covered staff)"]
[3,"Time, in hours, it takes for all rostered/covered staff to receive just-in-time (JIT) training, upon notification of a patient with Ebola or other special pathogen at the regional Ebola and other special pathogen treatment center (Goal : Within 72 hours)"]
[4,"Time, in hours, until an Ebola treatment center is ready to admit a patient with Ebola or other special pathogen as evidenced by an exercise or actual patient transfer (Goal: Within 72 hours)"]
[5,"Number of rostered/covered staff contacted by hospital within 4 hours of a patient confirmed with Ebola or other special pathogen admission to a regional Ebola and other special pathogen treatment center               (Goal : 100% of rostered/covered staff)"]
[6,"Number of rostered/covered staff contacted that indicated they are able to report to fulfill Ebola or other special pathogen-related staffing needs within 72 hours (Goal :100% of contacted rostered/covered staff)"]
[null,"Comments/Additional information"]

{"sheet":"Ebola Part A - AH Ebola PM","index":7,"n_rows":25,"n_cols":21,"rows_kept":25,"merged":[[0,0,1,0],[0,1,1,1],[0,2,0,11],[2,0,2,1],[2,4,2,5],[2,6,2,7],[2,8,2,9],[2,10,2,11],[4,0,4,1],[15,2,15,11]]}
["Performance Measure Number","U.S. Department of Health and Human Services\nHospital Preparedness Program (HPP)\nEbola Part A End-of-Year Preparedness Measures\nAssessment Hospitals Ebola Performance Measures","Assessment Hospitals Ebola Performance Measures"]
[null,null,{"$f":"IF('Ebola Part A - AH(s)'!H4=\"Active AH, exercising Ebola\",'Ebola Part A - AH(s)'!A4,\"AH1\")","v":"Anne Arundel Medical Center"},{"$f":"IF('Ebola Part A - AH(s)'!H5=\"Active AH, exercising Ebola\",'Ebola Part A - AH(s)'!A5,\"AH2\")","v":"AH2"},{"$f":"IF('Ebola Part A - AH(s)'!H6=\"Active AH, exercising Ebola\",'Ebola Part A - AH(s)'!A6,\"AH3\")","v":"AH3"},{"$f":"IF('Ebola Part A - AH(s)'!H7=\"Active AH, exercising Ebola\",'Ebola Part A - AH(s)'!A7,\"AH4\")","v":"AH4"},{"$f":"IF('Ebola Part A - AH(s)'!H8=\"Active AH, exercising Ebola\",'Ebola Part A - AH(s)'!A8,\"AH5\")","v":"AH5"},{"$f":"IF('Ebola Part A - AH(s)'!H9=\"Active AH, exercising Ebola\",'Ebola Part A - AH(s)'!A9,\"AH6\")","v":"AH6"},{"$f":"IF('Ebola Part A - AH(s)'!H10=\"Active AH, exercising Ebola\",'Ebola Part A - AH(s)'!A10,\"AH7\")","v":"AH7"},{"$f":"IF('Ebola Part A - AH(s)'!H11=\"Active AH, exercising Ebola\",'Ebola Part A - AH(s)'!A11,\"AH8\")","v":"AH8"},{"$f":"IF('Ebola Part A - AH(s)'!H12=\"Active AH, exercising Ebola\",'Ebola Part A - AH(s)'!A12,\"AH9\")","v":"AH9"},{"$f":"IF('Ebola Part A - AH(s)'!H13=\"Active AH, exercising Ebola\",'Ebola Part A - AH(s)'!A13,\"AH10\")","v":"AH10"}]
["Activity A: Develop a Concept of Operations"]
[1,"Time, in minutes, it takes from an assessment hospital’s notification to the health department of the need for an inter-facility transfer of a patient confirmed with Ebola or other special pathogen to the arrival of a staffed and equipped EMS/inter-facility transport unit, as evidenced by a no-notice exercise or real-world event (Goal: Within 240 minutes or 4 hours) "]
["Activity B: Assure Readiness of Assessment Hospitals"]
[8,"Time, in seconds, from active monitoring/direct active monitoring (AM/DAM) patient’s arrival to placement in isolation at assessment hospital (Goal: Less than or equal to 60 seconds)"]
[9,"Time, in minutes, it takes an assessment hospital to identify and isolate a patient suspected with Ebola or other special pathogen following emergency department triage, as evidenced by a real-world case or no-notice exercise (Goal: Less than or equal to 5 minutes )"]
[null,"Total number of health care facility and EMS workers in contact with an AM/DAM Ebola patient, after notification to an EMS agency or assessment hospital (Denominator for PM10,PM10(OSP),PM11)"]
[10,"Number of health care facility and emergency medical services (EMS) workers in PPE, of those make contact with an AM/DAM suspected Ebola patient under investigation (PUI) after health department notification to the assessment hospital and/or EMS Agency (Goal:100% of health care facility and EMS workers)"]
[11,"Number of health care facility and EMS workers in PPE that an AM/DAM suspected Ebola patient makes contact with after health department notification until isolation (Goal: Less than or equal to 3)"]
[null,"Total Number of emergency department staff (Denominator for PM12)"]
[12,"Number of emergency department staff trained at least annually in infection control and safety (Goal:100% of emergency department staff)"]
[null,"Total Number of intensive care unit staff (Denominator for PM13)"]
[13,"Number of intensive care unit staff trained at least annually in infection control and safety (Goal :100% of intensive care unit staff)"]
[14,"Are the assessemnt hospitals able to access their PPE supply (i.e., know location and have sufficient quantity of unexpired supply) within 10 minutes of transfer notification or arrival, if no notification, of a patient suspected with Ebola or other special pathogen? (Goal:100% of Assessment Hospitals)"]
[null,"Comments/Additional information"]
{"$rows_empty":7}
[{"$nulls":20},"Yes"]
[{"$nulls":20},"No"]

{"sheet":"Ebola Part A - AH OSP PM","index":8,"n_rows":10,"n_cols":12,"rows_kept":10,"merged":[[0,0,1,0],[0,1,1,1],[0,2,0,11],[2,0,2,1],[9,2,9,11]]}
["Performance Measure Number","U.S. Department of Health and Human Services\nHospital Preparedness Program (HPP)\nEbola Part A End-of-Year Preparedness Measures\nAssessment Hospitals Other Special Pathogens Performance Measures","Assessment Hospitals Other Special Pathogens Peformance Measures"]
[null,null,{"$f":"IF('Ebola Part A - AH(s)'!$H4=\"Active AH, exercising OSP\",'Ebola Part A - AH(s)'!A4,\"AH1\")","v":"AH1"},{"$f":"IF('Ebola Part A - AH(s)'!$H5=\"Active AH, exercising OSP\",'Ebola Part A - AH(s)'!A5,\"AH2\")","v":"Frederick Memorial Hospital"},{"$f":"IF('Ebola Part A - AH(s)'!$H6=\"Active AH, exercising OSP\",'Ebola Part A - AH(s)'!A6,\"AH3\")","v":"AH3"},{"$f":"IF('Ebola Part A - AH(s)'!$H7=\"Active AH, exercising OSP\",'Ebola Part A - AH(s)'!A7,\"AH4\")","v":"AH4"},{"$f":"IF('Ebola Part A - AH(s)'!$H8=\"Active AH, exercising OSP\",'Ebola Part A - AH(s)'!A8,\"AH5\")","v":"AH5"},{"$f":"IF('Ebola Part A - AH(s)'!$H9=\"Active AH, exercising OSP\",'Ebola Part A - AH(s)'!A9,\"AH6\")","v":"AH6"},{"$f":"IF('Ebola Part A - AH(s)'!$H10=\"Active AH, exercising OSP\",'Ebola Part A - AH(s)'!A10,\"AH7\")","v":"AH7"},{"$f":"IF('Ebola Part A - AH(s)'!$H11=\"Active AH, exercising OSP\",'Ebola Part A - AH(s)'!A11,\"AH8\")","v":"AH8"},{"$f":"IF('Ebola Part A - AH(s)'!$H12=\"Active AH, exercising OSP\",'Ebola Part A - AH(s)'!A12,\"AH9\")","v":"AH9"},{"$f":"IF('Ebola Part A - AH(s)'!$H13=\"Active AH, exercising OSP\",'Ebola Part A - AH(s)'!A13,\"AH10\")","v":"AH10"}]
["Activity B: Assure Readiness of Assessment Hospitals"]
[9,"Time, in minutes, it takes an assessment hospital to identify and isolate a patient suspected with Ebola or other special pathogen following emergency department triage, as evidenced by a real-world case or no-notice exercise (Goal: Less than or equal to 5 minutes )"]
["10(OSP)","Number of health care facility and emergency medical services (EMS) workers in PPE that a patient suspected of an other special pathogen makes contact with after health department notification to the assessment hospital or EMS agency (Goal:100% of health care facility and EMS workers)"]
[null,"Total Number of emergency department staff (Denominator for PM12)"]
[12,"Number of emergency department staff trained at least annually in infection control and safety (Goal:100% of emergency department staff)"]
[null,"Total Number of intensive care unit staff (Denominator for PM13)"]
[13,"Number of intensive care unit staff trained at least annually in infection control and safety (Goal :100% of intensive care unit staff)"]
[null,"Comments/Additional information"]

{"sheet":"Ebola Part A - Impact","index":9,"n_rows":7,"n_cols":23,"rows_kept":7,"merged":[[0,0,0,1],[0,2,0,3],[0,4,0,5],[0,6,0,7],[0,8,0,9],[0,10,0,11]]}
["U.S. Department of Health and Human Services\nHospital Preparedness Program (HPP)\nEbola Part A Preparedness Measures\nImpact"]
["Please rate your level of agreement with each of the following  statements:\n1 –Not prepared; 2 – Slightly prepared; 3 –Moderately prepared; 4 –Adequately prepared; 5 – Very  prepared","Response"]
["27a.My state/jurisdiction, including coalitions, frontline health facilities, and inter-facility transport providers, was prepared for an Ebola event in or before July 2014",{"$nulls":21},1]
["27b.My state/jurisdiction, including coalitions, frontline health facilities, and inter-facility transport providers, is prepared for an Ebola event after July 2014",{"$nulls":21},2]
["Please provide a written response in 250 words or less",{"$nulls":21},3]
["28a.Describe the impact of the Hospital Preparedness Program Ebola Preparedness and Response Activities funding on the overall preparedness of your state/jurisdiction for an Ebola or other special pathogen event. This may include capabilities developed as a result of funding or guidance from this program or other synergies you experienced.  In addition, describe any impacts that translate to all-hazards preparedness.",{"$nulls":21},4]
["28b.Describe any remaining gaps in the overall preparedness of your state/jurisdiction for an Ebola or other special pathogen event.  Note: Gaps are not limited to the existing capabilities.",{"$nulls":21},5]